bitfinex/quotes_SOLUSD_20260201
["timestamp","ask_amount","ask_price","bid_price","bid_amount"]
[1769916335419,11.81199105,105.07,105.05,2.27329311]
[1769916335804,35.60565241,105.07,105.04,63.47329311]
[1769916336819,35.60565241,105.07,105.03,2.27329311]
[1769916336820,2.29452651,105.06,105.03,2.27329311]
[1769916337009,2.29452651,105.06,105.02,63.47329311]
[1769916337405,2.29452651,105.06,105.02,61.2]
[1769916337726,2.29452651,105.06,104.99,2.16620827]
[1769916338107,2.29452651,105.06,105.0,2.16620827]
[1769916339207,2.23590598,105.04,105.01,2.16620827]
[1769916341415,35.55020256,105.06,105.01,2.16620827]
[1769916341615,35.55020256,105.06,105.02,2.16620827]
[1769916347133,9.51770872,105.07,105.03,2.25663339]
[1769916347738,11.8208223,105.07,105.03,2.25663339]
[1769916352040,11.8208223,105.07,105.03,61.2]
[1769916352245,11.8208223,105.07,105.04,2.25663339]
[1769916352442,2.30311358,105.06,105.03,61.2]
[1769916353335,2.30311358,105.04,105.03,56.45616923]
[1769916353733,2.30311358,105.04,105.02,2.25663339]
[1769916355538,11.82398386,105.04,105.0,2.25663339]
[1769916359070,2.30311358,105.03,105.0,2.25663339]
[1769916360131,2.30311358,105.03,105.01,2.25663339]
[1769916360132,9.52150415,105.03,105.01,2.25663339]
[1769916360445,2.30311358,105.04,105.01,2.25663339]
[1769916361327,11.82376761,105.04,105.01,2.25663339]
[1769916362745,2.30311358,105.03,105.01,2.25663339]
[1769916363442,11.82376761,105.04,105.01,2.25663339]
[1769916370850,9.52065403,105.04,104.99,16.6399373]
[1769916371049,2.27083705,105.03,104.98,22.29461366]
[1769916371229,2.27083705,105.03,104.99,2.16651448]
[1769916372954,2.27083705,105.01,104.98,2.16651448]
[1769916374249,9.52380952,105.0,104.98,2.16651448]
[1769916378351,47.60393142,105.04,104.98,2.16651448]
[1769916378352,6.79552326,105.07,105.0,2.16651448]
[1769916378654,9.51774492,105.07,105.03,2.16651448]
[1769916378955,35.58224333,105.07,105.03,2.16651448]
[1769916379250,2.27083705,105.06,104.98,33.33943342]
[1769916379453,2.27083705,105.06,104.99,2.16651448]
[1769916379634,2.27083705,105.05,104.99,2.16651448]
[1769916379836,2.27083705,105.03,104.99,2.16651448]
[1769916382659,9.52199581,105.02,104.99,2.16651448]
[1769916389451,11.79283286,105.02,104.99,2.16651448]
[1769916394752,11.79239769,105.03,105.0,2.16651448]
[1769916394937,11.79239769,105.03,104.99,13.01457974]
[1769916395137,11.79101983,105.04,104.99,13.01457974]
[1769916395759,2.27083705,105.03,104.99,13.01457974]
[1769916396843,2.27083705,105.03,105.0,2.16651448]
[1769916397454,11.79202389,105.03,105.0,2.16651448]
[1769916397761,2.27864226,105.02,105.0,2.16651448]
[1769916398054,2.27864226,105.02,104.99,11.77685988]
[1769916398260,2.27864226,105.02,104.99,2.25215504]
[1769916400970,11.7998291,105.03,105.0,2.25215504]
[1769916401642,2.27864226,105.02,105.0,2.25215504]
[1769916402163,2.27864226,105.02,104.99,13.01449856]
[1769916404257,2.27864226,105.02,104.99,13.22125418]
[1769916407061,2.27864226,105.02,104.99,9.73137928]
[1769916407260,2.27864226,105.02,104.99,13.22125418]
[1769916409569,2.27864226,105.02,104.99,9.73137928]
[1769916409865,2.27864226,105.02,105.0,0.21378126]
[1769916410060,2.27864226,105.02,104.99,13.22827982]
[1769916415256,2.27207232,105.03,105.0,0.22215709]
[1769916415456,2.27207232,105.03,104.99,13.01449856]
[1769916416556,2.29877562,105.02,104.99,13.01449856]
[1769916419369,11.81805215,105.05,104.99,36.82629015]
[1769916419573,2.29877562,105.06,105.02,3.4898749]
[1769916422277,2.29877562,105.07,105.03,13.01096411]
[1769916422977,2.29877562,105.07,104.99,54.73917128]
[1769916423160,2.29877562,105.07,105.02,3.4898749]
[1769916424374,2.29877562,105.06,105.02,13.01156418]
[1769916424777,2.29877562,105.06,105.02,13.03399598]
[1769916425078,2.29877562,105.06,105.03,0.0224318]
[1769916425487,2.29877562,105.06,105.04,0.0224318]
[1769916426085,2.29877562,105.07,105.04,0.0224318]
[1769916427500,2.29877562,105.07,105.03,13.04119204]
[1769916427886,2.29877562,105.07,105.04,0.0334634]
[1769916430866,2.29877562,105.07,105.03,20.16743596]
[1769916431068,2.29877562,105.07,105.04,0.04140894]
[1769916447896,2.29877562,105.07,105.03,40.52045901]
[1769916448095,2.29877562,105.07,105.04,0.08158386]
[1769916450104,2.29877562,105.07,105.03,40.43887515]
[1769916450313,2.29877562,105.07,105.03,40.5246875]
[1769916450614,2.29877562,105.07,105.04,0.08581235]
[1769916457098,2.31868444,105.08,105.05,0.10178231]
[1769916458399,2.31868444,105.08,105.05,9.62105884]
[1769916460823,2.31868444,105.08,105.05,9.51927653]
[1769916461125,2.31868444,105.08,105.05,9.62850711]
[1769916464027,2.31868444,105.08,105.06,0.11634249]
[1769916470430,2.31868444,105.08,105.05,7.11558809]
[1769916470905,2.31868444,105.08,105.05,16.63482463]
[1769916472928,2.29877562,105.1,105.07,0.13119208]
[1769916473225,2.29877562,105.1,105.06,0.13119208]
[1769916474508,2.29877562,105.1,105.07,9.65021327]
[1769916475210,2.29877562,105.11,105.08,0.13428751]
[1769916475620,2.29877562,105.11,105.07,9.65327315]
[1769916475926,2.29877562,105.11,105.08,0.13580861]
[1769916477637,2.29877562,105.11,105.08,9.65229828]
[1769916478735,2.29877562,105.11,105.05,9.51920071]
[1769916478736,2.29877562,105.1,105.05,9.51920071]
[1769916479545,2.29877562,105.1,105.05,9.6594686]
[1769916480942,9.51536632,105.1,105.05,13.14553288]
[1769916481146,2.29877562,105.09,105.05,13.14553288]
[1769916481525,2.29877562,105.09,104.98,2.25084353]
[1769916481849,2.24294781,105.07,104.99,2.25084353]
[1769916482029,2.24294781,105.07,104.99,11.77534266]
[1769916482230,2.24294781,105.05,104.99,11.77534266]
[1769916482541,5.95568634,105.05,104.99,11.77534266]
[1769916482842,2.24294781,105.04,104.99,11.77534266]
[1769916483141,2.24294781,105.02,104.99,11.77534266]
[1769916484145,2.24294781,105.02,104.99,2.25084353]
[1769916485650,2.24294781,105.02,104.99,11.77554979]
[1769916487148,9.5186386,105.06,105.01,5.73690781]
[1769916487336,9.5186386,105.06,105.02,2.33589694]
[1769916488253,33.30478636,105.09,105.02,2.33589694]
[1769916488655,33.30478636,105.09,105.02,11.85787715]
[1769916489053,2.25665609,105.08,105.02,11.85787715]
[1769916490953,2.25665609,105.06,105.02,11.85787715]
[1769916491461,2.25665609,105.06,105.03,2.33589694]
[1769916494773,2.25665609,105.06,105.02,11.85787715]
[1769916495742,2.25665609,105.06,105.02,22.45952952]
[1769916498551,2.25665609,105.06,105.03,2.33589694]
[1769916501681,2.25665609,105.06,105.03,9.45148503]
[1769916504178,11.77383362,105.08,105.04,2.33589694]
[1769916504358,2.25665609,105.07,105.04,5.82196122]
[1769916505479,2.25665609,105.07,105.04,15.34176887]
[1769916506069,9.51598802,105.09,105.05,2.33589694]
[1769916506261,2.25665609,105.08,105.06,2.33589694]
[1769916506455,2.25665609,105.08,105.05,10.60165237]
[1769916506968,2.25665609,105.08,105.05,3.48606428]
[1769916507362,2.25665609,105.08,105.06,9.51837045]
[1769916512177,2.25665609,105.09,105.06,11.28640159]
[1769916512479,2.25665609,105.1,105.07,1.76803114]
[1769916513382,2.25665609,105.1,105.07,11.28543745]
[1769916513972,2.25665609,105.1,105.07,14.77150173]
[1769916515582,2.25665609,105.1,105.07,11.28543745]
[1769916516565,2.25665609,105.1,105.07,14.76968998]
[1769916521191,2.25665609,105.1,105.07,9.51740631]
[1769916521372,2.59066384,105.09,105.06,11.40312948]
[1769916521573,2.59066384,105.09,105.06,1.88518697]
[1769916522291,2.59066384,105.09,105.06,7.11558809]
[1769916523390,2.59066384,105.09,105.06,9.03336277]
[1769916526790,2.59066384,105.09,105.06,7.11558809]
[1769916533897,2.59066384,105.09,105.06,9.14363738]
[1769916538085,2.59066384,105.09,105.06,2.02804929]
[1769916545806,2.59066384,105.09,105.07,2.13339629]
[1769916545996,2.59066384,105.09,105.06,11.65170988]
[1769916546510,9.5149298,105.1,105.06,9.51831359]
[1769916546737,2.61916189,105.1,105.07,2.13339629]
[1769916547810,2.61916189,105.1,105.07,11.65059071]
[1769916548104,2.61916189,105.1,105.08,2.15752908]
[1769916548302,2.52887712,105.11,105.08,2.15752908]
[1769916549122,2.52887712,105.12,105.09,2.16538926]
[1769916549319,2.52887712,105.12,105.1,2.16538926]
[1769916550414,2.52887712,105.12,105.09,11.68803895]
[1769916552105,2.52887712,105.12,105.09,9.51487979]
[1769916552299,2.52887712,105.12,105.1,2.18843225]
[1769916552502,2.52887712,105.12,105.09,11.70331204]
[1769916554402,2.52887712,105.12,105.09,18.81890013]
[1769916555015,2.52887712,105.12,105.09,7.11558809]
[1769916555215,9.51350403,105.12,105.09,7.11558809]
[1769916555526,2.52887712,105.11,105.09,7.11558809]
[1769916555823,2.52887712,105.11,105.07,2.21793989]
[1769916556406,2.52887712,105.11,105.07,9.51740822]
[1769916556610,2.52887712,105.11,105.08,2.21793989]
[1769916557410,2.52887712,105.11,105.08,5.70219242]
[1769916557603,2.52887712,105.11,105.09,2.22510619]
[1769916558813,9.51350403,105.12,105.09,2.22510619]
[1769916559002,2.52887712,105.12,105.09,5.70935872]
[1769916560408,2.52887712,105.12,105.09,2.22510619]
[1769916566225,2.52887712,105.12,105.09,8.18751194]
[1769916566614,2.52887712,105.12,105.09,17.70315887]
[1769916575427,2.52887712,105.11,105.09,5.96240575]
[1769916577132,2.66078315,105.1,105.09,5.96240575]
[1769916577833,2.66078315,105.1,105.08,8.32036997]
[1769916579033,12.17465221,105.11,105.08,8.32036997]
[1769916579730,2.66078315,105.1,105.08,8.32036997]
[1769916580830,2.66078315,105.1,105.08,5.96240575]
[1769916581027,2.66078315,105.09,105.05,2.65126244]
[1769916584248,9.51639323,105.09,105.05,2.65126244]
[1769916584530,2.78445759,105.08,105.05,2.65126244]
[1769916589430,2.78445759,105.07,105.04,2.79985789]
[1769916589642,2.78445759,105.07,105.02,2.79985789]
[1769916589827,2.78445759,105.07,105.01,2.79985789]
[1769916591322,2.78445759,105.05,105.01,2.79985789]
[1769916593346,12.30419399,105.05,105.01,2.79985789]
[1769916593535,2.78445759,105.04,105.01,2.79985789]
[1769916598352,2.78445759,105.04,105.01,5.90628968]
[1769916600649,9.51879213,105.06,105.03,2.79985789]
[1769916600954,2.78445759,105.06,105.03,2.79985789]
[1769916603442,9.51878299,105.06,105.03,2.79985789]
[1769916603833,2.78445759,105.06,105.03,2.79985789]
[1769916604349,2.78445759,105.06,105.04,2.79985789]
[1769916606349,2.78445759,105.06,105.03,5.90628968]
[1769916606559,12.30284228,105.06,105.03,5.90628968]
[1769916606735,12.30284228,105.06,105.04,2.79985789]
[1769916607835,2.87169402,105.05,105.03,3.10643179]
[1769916608752,2.87169402,105.05,105.03,5.81134057]
[1769916609150,12.39007871,105.06,105.03,5.81134057]
[1769916610054,12.39007871,105.06,105.03,2.70490878]
[1769916610354,2.87169402,105.05,105.03,2.70490878]
[1769916610666,2.87169402,105.06,105.03,2.70490878]
[1769916610842,2.87169402,105.06,105.04,2.70490878]
[1769916611233,2.87169402,105.07,105.04,2.70490878]
[1769916611847,2.87169402,105.06,105.03,2.70490878]
[1769916612347,2.87169402,105.06,105.03,12.2258839]
[1769916614456,12.38970357,105.07,105.04,2.70490878]
[1769916614758,12.38863824,105.08,105.04,2.70490878]
[1769916615143,2.87169402,105.07,105.04,2.70490878]
[1769916615860,2.87169402,105.08,105.05,2.70490878]
[1769916617656,2.87169402,105.09,105.06,2.70490878]
[1769916617855,2.87169402,105.09,105.06,5.81134057]
[1769916618043,12.38745497,105.09,105.06,3.10643179]
[1769916618245,12.38745497,105.09,105.06,5.81134057]
[1769916620468,12.38745497,105.09,105.07,2.70490878]
[1769916622670,9.51576095,105.09,105.07,2.70490878]
[1769916622862,12.38745497,105.09,105.07,2.70490878]
[1769916624662,2.87169402,105.09,105.06,5.81134057]
[1769916624870,2.87169402,105.1,105.07,2.70490878]
[1769916625066,2.87169402,105.1,105.07,12.22233049]
[1769916625773,2.87169402,105.09,105.06,12.2228103]
[1769916626068,2.87169402,105.09,105.05,5.81134057]
[1769916627048,2.87169402,105.07,105.05,5.81134057]
[1769916629158,12.3896639,105.07,105.05,5.81134057]
[1769916629470,12.3896639,105.07,105.05,3.10643179]
[1769916630380,9.51796988,105.07,105.05,5.81134057]
[1769916630562,12.38860121,105.08,105.05,2.70490878]
[1769916630760,2.87169402,105.07,105.05,2.70490878]
[1769916633877,23.78988316,105.09,105.05,2.70490878]
[1769916633878,12.38780794,105.09,105.05,2.70490878]
[1769916634551,2.87169402,105.08,105.05,2.70490878]
[1769916635578,2.87169402,105.08,105.06,2.70490878]
[1769916636475,2.87169402,105.09,105.06,2.70490878]
[1769916638580,2.77745706,105.08,105.06,2.70490878]
[1769916639158,2.77745706,105.08,105.01,47.61289039]
[1769916639159,2.77745706,105.08,105.03,3.06186797]
[1769916639671,2.77745706,105.08,105.03,12.58223738]
[1769916639886,2.77745706,105.08,105.04,3.06186797]
[1769916640676,2.77745706,105.07,105.04,3.06186797]
[1769916642563,2.77745706,105.07,105.04,12.58202009]
[1769916642965,2.77745706,105.07,105.05,2.8330445]
[1769916643469,9.51739076,105.08,105.05,2.8330445]
[1769916643664,2.91245196,105.07,105.05,2.8330445]
[1769916644083,2.91245196,105.07,105.04,12.35319662]
[1769916644685,2.91245196,105.07,105.04,2.8330445]
[1769916649293,2.91245196,105.08,105.04,2.8330445]
[1769916649471,2.91245196,105.08,105.05,2.8330445]
[1769916649667,23.78913312,105.11,105.07,2.8330445]
[1769916649872,14.27759091,105.12,105.08,3.48519965]
[1769916649873,2.91245196,105.12,105.08,3.48519965]
[1769916650089,2.91245196,105.11,105.07,3.48519965]
[1769916650292,2.91245196,105.11,105.04,36.80571509]
[1769916650872,2.91245196,105.11,105.05,3.48519965]
[1769916651389,2.91245196,105.09,105.05,13.00362039]
[1769916651766,2.91245196,105.09,105.06,2.8330445]
[1769916652365,2.91245196,105.09,105.06,12.3513483]
[1769916653886,2.91245196,105.09,105.06,15.83654795]
[1769916657190,2.91245196,105.09,105.06,13.00350345]
[1769916657396,2.91245196,105.09,105.07,12.35048231]
[1769916657877,2.91245196,105.09,105.07,15.83568196]
[1769916658700,23.78234398,105.12,105.07,15.83568196]
[1769916658990,2.91245196,105.11,105.08,6.31824415]
[1769916659322,2.91245196,105.11,105.07,18.94211375]
[1769916660298,2.91245196,105.11,105.08,2.8330445]
[1769916661398,2.91245196,105.11,105.07,18.94211375]
[1769916661596,2.91245196,105.1,105.06,9.51792104]
[1769916661788,2.91245196,105.1,105.06,12.35096554]
[1769916661992,2.91245196,105.1,105.06,15.83616519]
[1769916663694,2.91245196,105.1,105.07,12.35041142]
[1769916663901,2.91245196,105.1,105.07,15.83561107]
[1769916667704,2.9828334,105.09,105.06,12.49216264]
[1769916668007,2.9828334,105.09,105.06,6.59163144]
[1769916668190,2.9828334,105.09,105.06,9.5654626]
[1769916668393,2.9828334,105.09,105.06,16.10994696]
[1769916668713,2.9828334,105.09,105.06,19.08377812]
[1769916669513,2.9828334,105.08,105.04,15.98200551]
[1769916670092,2.9828334,105.08,105.02,9.52155094]
[1769916670305,2.9828334,105.08,105.02,16.03654218]
[1769916670801,2.9828334,105.08,105.02,12.55134253]
[1769916671905,59.7449478,105.09,105.01,27.29124515]
[1769916671906,2.9828334,105.06,105.01,16.03755334]
[1769916672413,2.9828334,105.06,105.01,3.02979159]
[1769916674108,2.9828334,105.04,105.01,3.02979159]
[1769916674492,12.50210993,105.05,105.02,6.51499124]
[1769916674692,2.9828334,105.05,105.03,3.02979159]
[1769916675112,12.50120464,105.06,105.03,3.02979159]
[1769916675912,2.9828334,105.05,105.03,3.02979159]
[1769916677301,2.9828334,105.07,105.04,3.02979159]
[1769916677503,2.9828334,105.07,105.04,6.51499124]
[1769916677703,2.9828334,105.07,105.04,3.02979159]
[1769916679603,2.9828334,105.07,105.05,3.02979159]
[1769916681110,29.4228334,105.1,105.06,3.02979159]
[1769916681315,29.4228334,105.1,105.06,2.7256607]
[1769916681518,2.9828334,105.09,105.06,2.7256607]
[1769916682219,2.9828334,105.09,105.06,12.24398741]
[1769916682801,12.4976541,105.1,105.06,9.51832671]
[1769916683292,12.4976541,105.1,105.07,3.02979159]
[1769916684222,2.9828334,105.09,105.07,3.02979159]
[1769916688002,12.49577099,105.12,105.08,3.02979159]
[1769916688314,2.9828334,105.11,105.08,3.02979159]
[1769916688918,2.9828334,105.11,105.08,3.48519965]
[1769916689124,2.9828334,105.12,105.09,3.02979159]
[1769916690028,38.93495916,105.13,105.1,3.02979159]
[1769916690412,2.9828334,105.12,105.1,3.02979159]
[1769916690614,2.9828334,105.12,105.07,3.02979159]
[1769916691426,2.9828334,105.12,105.07,12.54673743]
[1769916691626,2.9828334,105.12,105.08,3.02979159]
[1769916692134,2.9828334,105.1,105.08,3.02979159]
[1769916692427,2.9828334,105.1,105.07,9.51694584]
[1769916692428,2.9828334,105.1,105.07,12.54673743]
[1769916694230,12.49667604,105.11,105.08,3.02979159]
[1769916694927,2.9828334,105.1,105.08,3.02979159]
[1769916698325,3.339103,105.11,105.08,12.54627224]
[1769916700221,3.339103,105.11,105.06,88.47984421]
[1769916700222,3.339103,105.1,105.07,3.07763081]
[1769916701233,12.85425772,105.1,105.07,3.07763081]
[1769916701439,3.339103,105.09,105.07,3.07763081]
[1769916703234,3.23474839,105.08,105.03,3.11505539]
[1769916704534,3.23474839,105.06,105.03,3.11505539]
[1769916706925,3.23474839,105.05,105.03,3.11505539]
[1769916707726,12.75391427,105.06,105.03,3.11505539]
[1769916711144,3.23474839,105.05,105.03,3.11505539]
[1769916712346,3.23474839,105.05,105.02,3.11505539]
[1769916712546,3.23474839,105.04,105.01,12.63750478]
[1769916712743,3.23474839,105.04,105.01,3.11505539]
[1769916714746,3.23474839,105.03,105.0,3.11505539]
[1769916716438,3.23474839,105.02,104.99,84.89732474]
[1769916716640,3.23474839,105.02,104.98,0.1]
[1769916717139,3.23474839,105.02,104.97,0.426548]
[1769916718456,3.23474839,104.99,104.97,0.426548]
[1769916718629,3.23474839,104.99,104.96,0.1]
[1769916720246,3.23474839,104.99,104.94,0.1]
[1769916720433,3.23474839,104.97,104.94,0.1]
[1769916722648,3.23474839,104.96,104.94,0.1]
[1769916724752,12.76271509,104.96,104.94,0.1]
[1769916728653,3.52278603,104.95,104.94,1e-08]
[1769916729950,3.52278603,104.94,104.93,1e-08]
[1769916731257,13.05204084,104.94,104.93,1e-08]
[1769916732245,9.52925481,104.94,104.93,1e-08]
[1769916732549,3.52278603,104.94,104.93,1e-08]
[1769916734261,13.05204084,104.94,104.93,1e-08]
[1769916736340,3.52278603,104.93,104.9,3.40948952]
[1769916737153,3.52278603,104.93,104.87,3.40948952]
[1769916737351,4.961,104.89,104.87,3.40948952]
[1769916737548,8.48378603,104.89,104.87,3.40948952]
[1769916738250,4.961,104.89,104.87,3.40948952]
[1769916739137,14.49485412,104.89,104.87,3.40948952]
[1769916740439,3.52278603,104.88,104.85,3.40948952]
[1769916742255,4.961,104.89,104.86,12.94593384]
[1769916742455,4.961,104.89,104.88,3.40948952]
[1769916742760,3.52278603,104.91,104.88,3.40948952]
[1769916743884,6.03362096,104.92,104.88,3.40948952]
[1769916744056,2.18920441,104.92,104.89,3.48429396]
[1769916744446,5.81139876,104.92,104.88,9.53394416]
[1769916744750,3.62219435,104.91,104.87,9.53524565]
[1769916744953,3.62219435,104.91,104.86,9.53605722]
[1769916745351,3.62219435,104.91,104.86,13.02035118]
[1769916745541,3.62219435,104.91,104.86,9.53605722]
[1769916745737,3.62219435,104.91,104.86,13.02035118]
[1769916745937,3.62219435,104.91,104.86,9.53605722]
[1769916746665,3.62219435,104.9,104.86,3.51013352]
[1769916747251,3.62219435,104.9,104.86,0.02583956]
[1769916747562,3.62219435,104.9,104.87,0.02583956]
[1769916747953,13.15517972,104.9,104.86,9.56052873]
[1769916749050,13.15517972,104.9,104.87,0.02258916]
[1769916750048,3.62219435,104.9,104.87,0.02258916]
[1769916751363,3.62219435,104.88,104.83,3.48429396]
[1769916751564,3.62219435,104.88,104.82,3.58429396]
[1769916751873,3.62219435,104.88,104.83,3.48429396]
[1769916752051,3.62219435,104.88,104.83,13.02354452]
[1769916752449,3.62219435,104.89,104.84,3.48429396]
[1769916754067,3.62219435,104.89,104.83,23.84813507]
[1769916754270,3.62219435,104.89,104.84,3.48429396]
[1769916754774,9.61013324,104.91,104.86,3.48429396]
[1769916756073,9.61013324,104.91,104.85,3.48429396]
[1769916756074,3.62219435,104.9,104.85,3.48429396]
[1769916756261,13.15508784,104.9,104.86,9.53652489]
[1769916756573,3.62219435,104.89,104.85,9.5370112]
[1769916756773,3.62219435,104.89,104.83,9.53883753]
[1769916757164,3.62219435,104.89,104.83,13.02313149]
[1769916757674,3.62219435,104.89,104.83,9.53883753]
[1769916758370,3.62219435,104.88,104.83,9.53883753]
[1769916759769,3.62219435,104.87,104.83,9.53883753]
[1769916761474,3.62219435,104.87,104.83,3.50002873]
[1769916761679,3.62219435,104.88,104.84,3.50002873]
[1769916762173,3.62219435,104.89,104.85,3.50002873]
[1769916762355,9.57953391,104.9,104.86,3.50002873]
[1769916762970,5.95733956,104.9,104.87,3.50002873]
[1769916763369,5.95733956,104.9,104.86,3.50002873]
[1769916763672,5.95733956,104.9,104.87,9.53561552]
[1769916765678,9.57953391,104.9,104.87,9.53561552]
[1769916774985,9.57953391,104.9,104.86,9.53652489]
[1769916779283,3.62219435,104.89,104.86,9.53652489]
[1769916779585,9.57953391,104.9,104.86,9.53652489]
[1769916780085,9.57953391,104.9,104.86,70.73652489]
[1769916782191,9.57953391,104.9,104.86,74.23655362]
[1769916782375,5.95733956,104.9,104.88,3.50002873]
[1769916782580,3.62219435,104.91,104.86,74.23655362]
[1769916782781,3.62219435,104.91,104.86,70.73652489]
[1769916783290,9.5323133,104.91,104.86,70.73652489]
[1769916783484,3.62219435,104.9,104.86,70.73652489]
[1769916783886,3.62219435,104.9,104.86,74.23655362]
[1769916784176,3.62219435,104.9,104.86,61.2]
[1769916784389,3.62219435,104.9,104.83,9.53884235]
[1769916784580,3.62219435,104.89,104.84,9.53820934]
[1769916785489,3.62219435,104.87,104.84,9.53820934]
[1769916790597,3.62219435,104.88,104.84,13.03823807]
[1769916791694,3.62219435,104.87,104.84,9.53820934]
[1769916791996,3.62219435,104.87,104.83,33.38639029]
[1769916792599,3.62219435,104.87,104.84,13.03816786]
[1769916792801,3.62219435,104.87,104.84,9.53813913]
[1769916792975,3.62219435,104.89,104.84,9.53813913]
[1769916793181,3.62219435,104.89,104.84,36.88402821]
[1769916794598,9.56008626,104.91,104.87,3.50002873]
[1769916794797,9.56008626,104.91,104.88,3.50002873]
[1769916794998,5.93789191,104.91,104.88,3.50002873]
[1769916795196,5.93789191,104.91,104.89,3.50002873]
[1769916796384,3.75,147.04,104.9,13.0324411]
[1769916796385,55.29516282,104.97,104.9,13.0324411]
[1769916796580,9.52743902,104.96,104.91,3.67010761]
[1769916796802,9.52743902,104.96,104.92,3.50002873]
[1769916797710,41.96373064,104.97,104.92,3.50002873]
[1769916798504,3.12841317,104.95,104.9,0.1406978]
[1769916798694,3.12841317,104.95,104.89,13.17452384]
[1769916798902,3.12841317,104.95,104.9,0.12625988]
[1769916799097,3.12841317,104.95,104.9,3.62628861]
[1769916800586,3.12841317,104.94,104.9,13.15882293]
[1769916803810,3.12841317,104.94,104.86,9.53616344]
[1769916803811,3.12841317,104.93,104.86,9.53616344]
[1769916804112,3.12841317,104.89,104.83,13.09398861]
[1769916804491,3.12841317,104.89,104.84,3.55506953]
[1769916804808,3.12841317,104.89,104.82,9.68086545]
[1769916804989,3.12841317,104.89,104.82,9.6397775]
[1769916805389,3.12841317,104.89,104.82,13.13980623]
[1769916805603,3.12841317,104.87,104.82,9.6397775]
[1769916805809,3.12841317,104.87,104.82,13.13980623]
[1769916806111,3.12841317,104.87,104.82,0.1]
[1769916806811,3.12841317,104.87,104.78,23.85832481]
[1769916807108,3.12841317,104.87,104.77,13.1578189]
[1769916807490,3.12841317,104.87,104.76,13.37207028]
[1769916807693,3.12841317,104.85,104.76,0.326548]
[1769916807907,3.12841317,104.85,104.76,9.87216059]
[1769916808210,3.12841317,104.85,104.76,13.37218932]
[1769916809206,33.38420449,104.84,104.76,13.37218932]
[1769916809426,3.12841317,104.83,104.76,13.37218932]
[1769916810011,12.66675731,104.84,104.79,3.50002873]
[1769916810214,3.12841317,104.83,104.79,3.5737199]
[1769916810709,3.12841317,104.86,104.82,3.56070144]
[1769916810894,3.12841317,104.86,104.83,3.50002873]
[1769916811094,3.12841317,104.86,104.82,3.56070144]
[1769916811515,3.12841317,104.86,104.83,3.50002873]
[1769916811698,3.12841317,104.86,104.83,9.3748455]
[1769916813713,3.12841317,104.86,104.83,18.91402885]
[1769916813918,3.12841317,104.86,104.84,9.3748455]
[1769916814908,3.12841317,104.86,104.83,18.91402885]
[1769916815115,3.12841317,104.86,104.83,9.3748455]
[1769916816111,3.12841317,104.88,104.83,9.3748455]
[1769916817014,3.12841317,104.86,104.83,9.3748455]
[1769916817214,3.12841317,104.86,104.82,18.91448047]
[1769916819219,3.12841317,104.86,104.83,9.3748455]
[1769916819715,2.99560319,104.87,104.84,9.37244728]
[1769916820623,2.99560319,104.86,104.83,18.91124834]
[1769916821101,2.99560319,104.87,104.83,18.91124834]
[1769916821930,2.99560319,104.87,104.84,9.37244728]
[1769916822119,2.99560319,104.88,104.86,9.37244728]
[1769916822620,2.99560319,104.89,104.87,9.37244728]
[1769916823214,2.99560319,104.91,104.88,9.37244728]
[1769916823418,2.99560319,104.92,104.89,9.37244728]
[1769916824009,39.02518568,104.94,104.9,9.37244728]
[1769916824215,2.99560319,104.93,104.9,9.37244728]
[1769916824432,2.99560319,104.93,104.89,9.37244728]
[1769916825024,2.99560319,104.93,104.9,9.37244728]
[1769916825921,2.99560319,104.93,104.89,18.90586806]
[1769916826720,2.99560319,104.92,104.87,9.37244728]
[1769916826900,2.99560319,104.92,104.88,9.37244728]
[1769916827094,12.52688262,104.92,104.88,9.37244728]
[1769916827302,2.99560319,104.91,104.88,9.37244728]
[1769916827928,2.99560319,104.91,104.87,9.37244728]
[1769916828227,2.99560319,104.91,104.87,18.9080037]
[1769916829530,2.99560319,104.9,104.87,18.9080037]
[1769916833633,2.99560319,104.92,104.89,3.49621389]
[1769916834718,2.99560319,104.92,104.89,13.02976649]
[1769916836941,2.99560319,104.94,104.9,3.49621389]
[1769916837115,2.99560319,104.94,104.91,3.49621389]
[1769916838109,2.99560319,104.94,104.91,64.69621389]
[1769916839115,2.99560319,104.95,104.92,3.49621389]
[1769916839726,2.99560319,104.95,104.92,64.69621389]
[1769916840034,2.99560319,104.96,104.93,3.49621389]
[1769916840209,5.93684449,104.97,104.93,3.49621389]
[1769916840416,5.93684449,104.97,104.91,33.36117624]
[1769916840616,5.93684449,104.97,104.95,3.49621389]
[1769916840936,8.93244768,104.97,104.94,3.49621389]
[1769916841139,8.93244768,104.97,104.95,3.49621389]
[1769916843329,8.93244768,104.97,104.94,13.02498993]
[1769916843533,8.93244768,104.97,104.95,3.49621389]
[1769916844328,8.93244768,104.97,104.94,13.02498993]
[1769916846735,2.99560319,104.96,104.93,13.02591322]
[1769916847038,2.99560319,104.95,104.92,13.02689645]
[1769916848117,8.93244768,104.97,104.94,13.02486571]
[1769916848339,8.93244768,104.97,104.95,3.49621389]
[1769916851222,5.93684449,104.97,104.95,13.02441336]
[1769916851427,2.99560319,104.98,104.96,3.49621389]
[1769916853140,2.99560319,104.98,104.95,13.02441336]